[Event "European School-ch 2019"]
[Site "Mamaia"]
[Date "2019.06.03"]
[Round "4.31"]
[White "Anghelescu, Teodor-Stefan"]
[Black "Qalabegashvili, Data"]
[Result "1-0"]
[ECO "A45"]
[WhiteElo "1266"]
[BlackElo "1309"]
[Annotator "NA"]
[PlyCount "105"]
[EventDate "2019.05.31"]
[EventType "swiss"]
[EventCountry "ROU"]
[SourceTitle "playchess.com"]
[Source "ChessBase"]
[SourceQuality "1"]
[TimeControl "40/5400+30:1800+30"]

1. d4 {[%emt 0:00:00]} Nf6 {[%emt 0:00:00]} 2. Bf4 {[%emt 0:00:00]} g6 {[%emt 0:00:00]} 3. e3 {[%emt 0:00:00]} Bg7 {[%emt 0:00:05]} 4. Bd3 {[%emt 0:00:00]} d6 {[%emt 0:00:13]} 5. h4 {[%emt 0:01:09]} Nbd7 {[%emt 0:03:47]} 6. Nd2 {[%emt 0:00:22]} e5 {[%emt 0:00:39]} 7. Bg3 {[%emt 0:07:39]} exd4 {[%emt 0:01:27]} 8. exd4 {[%emt 0:00:11]} Nh5 {[%emt 0:03:55]} 9. c3 {[%emt 0:00:36]} Nxg3 {[%emt 0:02:12]} 10. fxg3 {[%emt 0:00:11]} Nf6 {[%emt 0:07:00]} 11. Qf3 {[%emt 0:05:00]} O-O {[%emt 0:03:44]} 12. Ne2 {[%emt 0:04:16]} Re8 {[%emt 0:02:53]} 13. Rf1 {[%emt 0:03:54]} Bg4 {[%emt 0:03:52]} 14. Qf4 {[%emt 0:05:51]} Qe7 {[%emt 0:02:03]} 15. Nf3 {[%emt 0:05:24]} Qe3 {[%emt 0:03:24]} 16. Qxe3 {[%emt 0:00:39]} Rxe3 {[%emt 0:00:10]} 17. Kd2 {[%emt 0:00:22]} Rae8 {[%emt 0:01:34]} 18. Rae1 {[%emt 0:01:07]} Bh6 {[%emt 0:04:09]} 19. Nf4 {[%emt 0:01:21]} Rxe1 {[%emt 0:01:35]} 20. Nxe1 {[%emt 0:01:11]} Ne4+ {[%emt 0:02:49]} 21. Bxe4 {[%emt 0:00:45]} Rxe4 {[%emt 0:00:06]} 22. Rf2 {[%emt 0:00:54]} c6 {[%emt 0:04:09]} 23. Ned3 {[%emt 0:00:37]} Kg7 {[%emt 0:03:04]} 24. a4 {[%emt 0:03:39]} b5 {[%emt 0:03:14]} 25. axb5 {[%emt 0:00:47]} cxb5 {[%emt 0:00:11]} 26. Nb4 {[%emt 0:01:38]} g5 {[%emt 0:05:47]} 27. hxg5 {[%emt 0:01:29]} Bxg5 {[%emt 0:01:12]} 28. Nbd5 {[%emt 0:01:21]} h5 {[%emt 0:04:03]} 29. Ne3 {[%emt 0:01:18]} f5 {[%emt 0:05:49]} 30. Kd3 {[%emt 0:01:43]} a5 {[%emt 0:02:42]} 31. Nxh5+ {[%emt 0:03:05]} Kh6 {[%emt 0:06:52]} 32. Nf4 {[%emt 0:01:50]} b4 {[%emt 0:02:05]} 33. Nxg4+ {[%emt 0:01:41]} Kh7 {[%emt 0:01:38]} 34. Ne3 {[%emt 0:01:02]} bxc3 {[%emt 0:01:25]} 35. bxc3 {[%emt 0:00:14]} Re8 {[%emt 0:02:27]} 36. Re2 {[%emt 0:00:23]} Ra8 {[%emt 0:00:51]} 37. Nc4 {[%emt 0:00:53]} Bd8 {[%emt 0:01:03]} 38. Nxd6 {[%emt 0:00:56]} a4 {[%emt 0:00:40]} 39. Nc4 a3 40. Ra2 {[%emt 0:04:17]} Be7 {[%emt 0:00:50]} 41. Nd5 {[%emt 0:00:46]} Bf8 {[%emt 0:00:39]} 42. Nc7 {[%emt 0:00:28]} Ra4 {[%emt 0:00:35]} 43. Nb5 {[%emt 0:00:20]} Kg6 {[%emt 0:00:13]} 44. d5 {[%emt 0:00:27]} Kf6 {[%emt 0:00:14]} 45. Nb6 {[%emt 0:00:20]} Rg4 {[%emt 0:00:23]} 46. Nd7+ {[%emt 0:00:08]} Ke7 {[%emt 0:00:16]} 47. Nxf8 {[%emt 0:00:06]} Kxf8 {[%emt 0:00:19]} 48. Rxa3 {[%emt 0:00:22]} Rxg3+ {[%emt 0:00:09]} 49. Kd4 {[%emt 0:00:06]} Rxg2 {[%emt 0:00:30]} 50. Ke5 {[%emt 0:00:07]} Rf2 {[%emt 0:00:24]} 51. Kf6 {[%emt 0:00:11]} Ke8 {[%emt 0:00:19]} 52. Nd6+ {[%emt 0:00:08]} Kd7 {[%emt 0:00:07]} 53. Nxf5 {[%emt 0:00:07]} 1-0

[Event "European School-ch 2019"]
[Site "Mamaia"]
[Date "2019.06.03"]
[Round "4.32"]
[White "Kumar, Sanjit S"]
[Black "Paunescu, Stefan-Vlad"]
[Result "1-0"]
[ECO "B41"]
[WhiteElo "1392"]
[BlackElo "1358"]
[Annotator "NA"]
[PlyCount "91"]
[EventDate "2019.05.31"]
[EventType "swiss"]
[EventCountry "ROU"]
[SourceTitle "playchess.com"]
[Source "ChessBase"]
[SourceQuality "1"]
[TimeControl "40/5400+30:1800+30"]

1. e4 {[%emt 0:00:00]} c5 {[%emt 0:00:00]} 2. Nf3 {[%emt 0:00:00]} e6 {[%emt 0:00:00]} 3. d4 {[%emt 0:00:00]} cxd4 {[%emt 0:00:00]} 4. Nxd4 {[%emt 0:00:00]} a6 {[%emt 0:00:00]} 5. c4 {[%emt 0:00:00]} Nf6 {[%emt 0:00:23]} 6. Nc3 {[%emt 0:00:04]} Qc7 {[%emt 0:01:18]} 7. Be2 {[%emt 0:00:53]} Be7 {[%emt 0:00:46]} 8. O-O {[%emt 0:01:16]} O-O {[%emt 0:01:05]} 9. Be3 {[%emt 0:01:13]} d6 {[%emt 0:00:58]} 10. Qd2 {[%emt 0:01:01]} Nbd7 {[%emt 0:01:04]} 11. f3 {[%emt 0:00:41]} Ne5 {[%emt 0:00:58]} 12. b3 {[%emt 0:01:34]} Rd8 {[%emt 0:00:53]} 13. Rac1 {[%emt 0:02:08]} Kh8 {[%emt 0:06:31]} 14. Rfd1 {[%emt 0:03:24]} Ned7 {[%emt 0:04:24]} 15. b4 {[%emt 0:12:02]} b6 {[%emt 0:06:37]} 16. a3 {[%emt 0:02:39]} Bb7 {[%emt 0:00:21]} 17. Qe1 {[%emt 0:02:45]} Bf8 {[%emt 0:01:47]} 18. Qf2 {[%emt 0:05:11]} Rab8 {[%emt 0:01:59]} 19. Nb3 {[%emt 0:14:44]} Rdc8 {[%emt 0:02:36]} 20. Na4 {[%emt 0:07:39]} Ba8 {[%emt 0:01:28]} 21. Nc3 {[%emt 0:10:18]} Ne5 {[%emt 0:02:01]} 22. Na4 {[%emt 0:01:12]} Ned7 {[%emt 0:00:13]} 23. Nb2 {[%emt 0:08:17]} g6 {[%emt 0:01:29]} 24. Nd3 {[%emt 0:03:28]} Bg7 {[%emt 0:00:58]} 25. Nd2 {[%emt 0:05:13]} Qd8 {[%emt 0:01:04]} 26. Bf4 {[%emt 0:02:43]} e5 {[%emt 0:00:47]} 27. Be3 {[%emt 0:01:10]} Nf8 {[%emt 0:01:50]} 28. c5 {[%emt 0:00:56]} d5 {[%emt 0:00:31]} 29. Nxe5 {[%emt 0:03:40]} Qe8 {[%emt 0:00:33]} 30. Nd3 {[%emt 0:01:23]} dxe4 {[%emt 0:00:39]} 31. fxe4 {[%emt 0:00:36]} Nxe4 {[%emt 0:00:38]} 32. Nxe4 {[%emt 0:00:10]} Qxe4 {[%emt 0:00:40]} 33. Bf3 Qe8 {[%emt 0:01:48]} 34. Bxa8 {[%emt 0:02:03]} Rxa8 {[%emt 0:00:13]} 35. cxb6 {[%emt 0:00:07]} Rxc1 {[%emt 0:00:41]} 36. Rxc1 {[%emt 0:01:00]} Rb8 {[%emt 0:01:32]} 37. Bf4 {[%emt 0:01:09]} Rd8 {[%emt 0:01:30]} 38. b7 {[%emt 0:01:01]} Qd7 {[%emt 0:02:32]} 39. b8=Q {[%emt 0:00:00]} Rxb8 {[%emt 0:00:00]} 40. Bxb8 {[%emt 0:00:00]} Bd4 {[%emt 0:00:00]} 41. Be5+ {[%emt 0:00:37]} Bxe5 42. Nxe5 {[%emt 0:00:10]} Qd5 {[%emt 0:01:26]} 43. Nxf7+ {[%emt 0:01:10]} Kg7 {[%emt 0:00:13]} 44. Rf1 {[%emt 0:00:04]} Qe6 {[%emt 0:00:36]} 45. Qd4+ {[%emt 0:00:07]} Kg8 {[%emt 0:00:20]} 46. Qh8# 1-0

[Event "European School-ch 2019"]
[Site "Mamaia"]
[Date "2019.06.03"]
[Round "4.33"]
[White "Bayramli, Rafael"]
[Black "Mammadli, Ali"]
[Result "1/2-1/2"]
[ECO "D00"]
[WhiteElo "1331"]
[BlackElo "1220"]
[Annotator "NA RC"]
[PlyCount "141"]
[EventDate "2019.05.31"]
[EventType "swiss"]
[EventCountry "ROU"]
[SourceTitle "playchess.com"]
[Source "ChessBase"]
[SourceQuality "1"]
[TimeControl "40/5400+30:1800+30"]

1. d4 {[%emt 0:00:00]} d5 {[%emt 0:00:00]} 2. Bf4 {[%emt 0:00:00]} Nf6 {[%emt 0:00:00]} 3. e3 {[%emt 0:00:00]} e6 {[%emt 0:00:00]} 4. Nf3 {[%emt 0:00:10]} c5 {[%emt 0:00:00]} 5. c3 {[%emt 0:00:35]} Nc6 {[%emt 0:00:00]} 6. Nbd2 {[%emt 0:00:25]} Be7 {[%emt 0:00:00]} 7. Bd3 {[%emt 0:00:13]} Nh5 {[%emt 0:00:03]} 8. Bg3 {[%emt 0:00:17]} Nxg3 {[%emt 0:00:04]} 9. hxg3 {[%emt 0:00:05]} g6 {[%emt 0:00:17]} 10. Qe2 {[%emt 0:01:09]} b6 {[%emt 0:00:25]} 11. Bb5 {[%emt 0:01:47]} Bd7 {[%emt 0:00:19]} 12. Bxc6 Bxc6 {[%emt 0:00:06]} 13. Ne5 {[%emt 0:02:45]} Rc8 {[%emt 0:01:04]} 14. Nxc6 Rxc6 15. Qb5 {[%emt 0:04:41]} Qd7 {[%emt 0:00:42]} 16. Nf3 {[%emt 0:01:18]} Bf6 {[%emt 0:02:32]} 17. a4 {[%emt 0:01:19]} Qb7 {[%emt 0:10:44]} 18. O-O {[%emt 0:09:30]} O-O {[%emt 0:03:48]} 19. Rad1 {[%emt 0:08:40]} c4 {[%emt 0:02:20]} 20. a5 {[%emt 0:04:34]} a6 21. Qb4 {[%emt 0:05:49]} Be7 {[%emt 0:01:01]} 22. Qa4 {[%emt 0:00:26]} b5 {[%emt 0:00:05]} 23. Qc2 {[%emt 0:00:08]} f6 {[%emt 0:01:06]} 24. e4 {[%emt 0:03:07]} b4 {[%emt 0:02:47]} 25. exd5 {[%emt 0:02:17]} exd5 {[%emt 0:00:56]} 26. Nh4 {[%emt 0:05:59]} Kg7 {[%emt 0:02:37]} 27. Rde1 {[%emt 0:03:18]} Rf7 {[%emt 0:02:01]} 28. Re3 {[%emt 0:05:21]} bxc3 {[%emt 0:01:23]} 29. bxc3 {[%emt 0:01:37]} Qb5 {[%emt 0:03:52]} 30. Rfe1 {[%emt 0:01:02]} Ba3 {[%emt 0:00:42]} 31. Re8 {[%emt 0:02:37]} Qb2 {[%emt 0:07:44]} 32. Qa4 {[%emt 0:09:22]} Rcc7 {[%emt 0:02:52]} 33. R8e6 {[%emt 0:16:36]} Qb3 {[%emt 0:02:05]} 34. Qxb3 cxb3 {[%emt 0:00:07]} 35. Rxa6 {[%emt 0:07:40]} Rxc3 {[%emt 0:00:22]} 36. Rb6 {[%emt 0:00:10]} b2 {[%emt 0:00:12]} 37. Nf3 {[%emt 0:00:52]} Rfc7 {[%emt 0:04:42]} 38. Nd2 {[%emt 0:01:00]} Rc1 {[%emt 0:02:42]} 39. Rf1 {[%emt 0:01:14]} R7c2 {[%emt 0:01:34]} 40. a6 {[%emt 0:00:00]} Rc8 {[%emt 0:00:00]} 41. Nb1 {[%emt 0:07:31]} Bb4 {[%emt 0:16:58]} 42. Rb7+ {[%emt 0:11:08]} Kh6 {[%emt 0:01:11]} 43. a7 {[%emt 0:06:58]} Rxf1+ {[%emt 0:01:01]} 44. Kxf1 {[%emt 0:00:06]} Rc1+ {[%emt 0:00:06]} 45. Ke2 {[%emt 0:00:15]} Rxb1 46. Rxb4 {[%emt 0:01:14]} Ra1 {[%emt 0:00:26]} 47. Rxb2 {[%emt 0:00:34]} Rxa7 {[%emt 0:00:04]} 48. Rb5 {[%emt 0:00:08]} Rd7 {[%emt 0:00:05]} 49. Kd3 {[%emt 0:00:27]} Kg5 {[%emt 0:00:24]} 50. Kc3 {[%emt 0:01:56]} Kf5 {[%emt 0:00:09]} 51. Kb4 {[%emt 0:00:18]} Ke6 {[%emt 0:00:06]} 52. Rb6+ {[%emt 0:00:03]} Kf5 {[%emt 0:09:29]} 53. Kc5 {[%emt 0:02:33]} g5 {[%emt 0:06:43]} 54. g4+ {[%emt 0:02:09]} Ke4 {[%emt 0:04:18]} 55. Re6+ {[%emt 0:01:09]} Kf4 {[%emt 0:01:21]} 56. Rxf6+ {[%emt 0:00:14]} Kxg4 {[%emt 0:00:08]} 57. Rd6 {[%emt 0:00:05]} Rf7 {[%emt 0:00:12]} 58. Rxd5 {[%emt 0:00:50]} Rxf2 59. g3 {[%emt 0:00:27]} Rc2+ {[%emt 0:01:56]} 60. Kb4 {[%emt 0:00:44]} h6 {[%emt 0:01:23]} 61. Rd6 {[%emt 0:02:20]} Kxg3 {[%emt 0:00:34]} 62. Rxh6 {[%emt 0:00:09]} g4 {[%emt 0:00:02]} 63. d5 {[%emt 0:00:09]} Kf3 {[%emt 0:00:12]} 64. d6 {[%emt 0:00:48]} g3 {[%emt 0:00:17]} 65. Rg6 {[%emt 0:00:40]} g2 {[%emt 0:00:16]} 66. Kb5 {[%emt 0:00:45]} Kf2 {[%emt 0:00:34]} 67. Kb6 {[%emt 0:00:36]} g1=Q 68. Rxg1 {[%emt 0:00:00]} Kxg1 {[%emt 0:03:30]} 69. d7 {[%emt 0:00:00]} Rd2 {[%emt 0:00:13]} 70. Kc7 {[%emt 0:00:00]} Rxd7+ {[%emt 0:00:06]} 71. Kxd7 {[%emt 0:00:00]} 1/2-1/2

[Event "European School-ch 2019"]
[Site "Mamaia"]
[Date "2019.06.03"]
[Round "4.34"]
[White "Celik, Ali Alper"]
[Black "Danila, Tudor-Gabriel"]
[Result "1-0"]
[ECO "B23"]
[WhiteElo "1169"]
[BlackElo "1336"]
[Annotator "NA"]
[PlyCount "41"]
[EventDate "2019.05.31"]
[EventType "swiss"]
[EventCountry "ROU"]
[SourceTitle "playchess.com"]
[Source "ChessBase"]
[SourceQuality "1"]
[TimeControl "40/5400+30:1800+30"]

1. e4 {[%emt 0:00:00]} c5 {[%emt 0:00:00]} 2. Nc3 {[%emt 0:00:00]} g6 {[%emt 0:00:00]} 3. Nge2 {[%emt 0:00:00]} Bg7 {[%emt 0:00:00]} 4. g3 {[%emt 0:00:44]} Nc6 {[%emt 0:00:04]} 5. Bg2 {[%emt 0:00:50]} e6 {[%emt 0:00:46]} 6. O-O {[%emt 0:00:34]} Nge7 {[%emt 0:00:19]} 7. d3 {[%emt 0:05:53]} d5 8. exd5 {[%emt 0:02:49]} exd5 {[%emt 0:00:16]} 9. Nf4 {[%emt 0:03:04]} Be6 {[%emt 0:34:57]} 10. Re1 {[%emt 0:10:49]} Nd4 {[%emt 0:00:07]} 11. Ncxd5 {[%emt 0:02:46]} O-O {[%emt 0:00:47]} 12. Nxe6 {[%emt 0:07:48]} fxe6 {[%emt 0:00:16]} 13. Bg5 {[%emt 0:01:21]} Ndc6 {[%emt 0:03:49]} 14. Rxe6 {[%emt 0:03:20]} Re8 {[%emt 0:00:07]} 15. Qe2 {[%emt 0:02:42]} Nd4 {[%emt 0:16:40]} 16. Qe4 {[%emt 0:11:25]} Nxe6 {[%emt 0:00:27]} 17. Qxe6+ {[%emt 0:02:42]} Kf8 {[%emt 0:00:17]} 18. Nf6 {[%emt 0:02:20]} Bxf6 {[%emt 0:08:38]} 19. Bh6+ {[%emt 0:00:55]} Bg7 {[%emt 0:00:04]} 20. Qf6+ {[%emt 0:00:11]} Kg8 {[%emt 0:00:04]} 21. Qxg7# {[%emt 0:00:10]} 1-0

[Event "European School-ch 2019"]
[Site "Mamaia"]
[Date "2019.06.03"]
[Round "4.35"]
[White "Dias, Ruwan"]
[Black "Korovko, Iakov"]
[Result "0-1"]
[ECO "C16"]
[WhiteElo "1359"]
[BlackElo "1232"]
[Annotator "NA"]
[PlyCount "124"]
[EventDate "2019.05.31"]
[EventType "swiss"]
[EventCountry "ROU"]
[SourceTitle "playchess.com"]
[Source "ChessBase"]
[SourceQuality "1"]
[TimeControl "40/5400+30:1800+30"]

1. e4 {[%emt 0:00:00]} e6 {[%emt 0:00:00]} 2. d4 {[%emt 0:00:00]} d5 {[%emt 0:00:07]} 3. Nc3 {[%emt 0:00:00]} Bb4 {[%emt 0:00:27]} 4. e5 {[%emt 0:00:04]} b6 {[%emt 0:00:33]} 5. a3 {[%emt 0:00:18]} Bf8 {[%emt 0:03:12]} 6. Nf3 {[%emt 0:03:31]} Ba6 7. Bxa6 {[%emt 0:01:01]} Nxa6 {[%emt 0:00:47]} 8. O-O {[%emt 0:01:05]} Ne7 {[%emt 0:01:47]} 9. Bg5 {[%emt 0:04:47]} h6 {[%emt 0:02:19]} 10. Bh4 {[%emt 0:00:10]} Qc8 {[%emt 0:02:31]} 11. Qd2 {[%emt 0:04:48]} Nf5 {[%emt 0:00:55]} 12. Bg3 {[%emt 0:01:48]} Be7 {[%emt 0:02:36]} 13. Ne2 {[%emt 0:10:12]} O-O {[%emt 0:07:37]} 14. Nf4 {[%emt 0:04:11]} c5 {[%emt 0:02:38]} 15. c3 {[%emt 0:02:46]} Nb8 {[%emt 0:05:40]} 16. Rac1 {[%emt 0:04:17]} c4 {[%emt 0:03:57]} 17. Qc2 {[%emt 0:04:24]} Nc6 {[%emt 0:04:41]} 18. b4 {[%emt 0:07:54]} cxb3 {[%emt 0:01:41]} 19. Qxb3 {[%emt 0:00:38]} Na5 {[%emt 0:01:05]} 20. Qa2 {[%emt 0:02:00]} Qa6 {[%emt 0:11:00]} 21. Nd2 {[%emt 0:01:15]} Rac8 {[%emt 0:05:05]} 22. Rc2 {[%emt 0:02:21]} Nc4 {[%emt 0:02:47]} 23. Nxc4 {[%emt 0:00:31]} Rxc4 {[%emt 0:00:24]} 24. Rfc1 {[%emt 0:03:53]} Rfc8 {[%emt 0:10:32]} 25. Nd3 {[%emt 0:03:23]} Ra4 {[%emt 0:04:38]} 26. Nb4 {[%emt 0:01:05]} Bxb4 {[%emt 0:01:23]} 27. cxb4 {[%emt 0:01:20]} Rxc2 {[%emt 0:00:23]} 28. Rxc2 {[%emt 0:00:07]} Rxa3 {[%emt 0:00:21]} 29. Qb2 {[%emt 0:00:28]} Nxd4 {[%emt 0:03:22]} 30. Rc8+ Qxc8 {[%emt 0:00:52]} 31. Qxa3 {[%emt 0:05:11]} Ne2+ {[%emt 0:00:41]} 32. Kf1 {[%emt 0:01:31]} Qc1+ {[%emt 0:00:17]} 33. Qxc1 {[%emt 0:00:15]} Nxc1 {[%emt 0:00:45]} 34. f4 {[%emt 0:00:57]} Nd3 {[%emt 0:00:14]} 35. Be1 {[%emt 0:00:10]} Nxe1 {[%emt 0:00:53]} 36. Kxe1 {[%emt 0:00:11]} a6 {[%emt 0:00:12]} 37. Kd2 {[%emt 0:00:28]} Kf8 {[%emt 0:00:05]} 38. g4 {[%emt 0:00:37]} Ke7 {[%emt 0:00:08]} 39. h4 {[%emt 0:00:00]} Kd7 {[%emt 0:00:00]} 40. b5 {[%emt 0:00:00]} axb5 {[%emt 0:00:00]} 41. Kc3 {[%emt 0:02:32]} Kc6 {[%emt 0:00:26]} 42. Kb4 {[%emt 0:01:14]} d4 {[%emt 0:00:07]} 43. f5 {[%emt 0:00:35]} g5 {[%emt 0:00:33]} 44. hxg5 {[%emt 0:01:13]} hxg5 {[%emt 0:00:08]} 45. f6 {[%emt 0:00:28]} Kd5 {[%emt 0:00:07]} 46. Kb3 {[%emt 0:00:59]} Kxe5 {[%emt 0:00:06]} 47. Kc2 {[%emt 0:00:39]} Ke4 {[%emt 0:00:06]} 48. Kd2 {[%emt 0:00:24]} d3 {[%emt 0:00:04]} 49. Kd1 {[%emt 0:00:16]} Ke3 {[%emt 0:00:07]} 50. Ke1 {[%emt 0:00:20]} d2+ {[%emt 0:00:06]} 51. Kd1 {[%emt 0:00:07]} b4 {[%emt 0:00:04]} 52. Kc2 {[%emt 0:00:19]} Ke2 {[%emt 0:00:07]} 53. Kb3 {[%emt 0:00:07]} d1=Q+ {[%emt 0:00:11]} 54. Kxb4 {[%emt 0:00:13]} Qc2 {[%emt 0:00:09]} 55. Kb5 {[%emt 0:00:28]} Kd3 {[%emt 0:00:06]} 56. Kxb6 {[%emt 0:00:17]} e5 {[%emt 0:00:12]} 57. Kb5 {[%emt 0:00:15]} e4 {[%emt 0:00:13]} 58. Kb6 {[%emt 0:00:08]} e3 {[%emt 0:00:12]} 59. Kb5 {[%emt 0:00:09]} e2 {[%emt 0:00:09]} 60. Kb6 {[%emt 0:00:13]} e1=Q {[%emt 0:00:27]} 61. Kb5 {[%emt 0:00:05]} Qeb1+ {[%emt 0:00:18]} 62. Ka5 {[%emt 0:00:07]} Qca2# {[%emt 0:00:12]} 0-1

[Event "European School-ch 2019"]
[Site "Mamaia"]
[Date "2019.06.03"]
[Round "4.36"]
[White "Damodaran, Patrick"]
[Black "Mirzoyan, Davit T."]
[Result "0-1"]
[ECO "A81"]
[WhiteElo "1157"]
[BlackElo "2388"]
[Annotator "ChessBase"]
[PlyCount "47"]
[EventDate "2019.05.31"]
[EventType "swiss"]
[EventCountry "ROU"]
[SourceTitle "playchess.com"]
[Source "ChessBase"]
[SourceQuality "1"]
[TimeControl "40/5400+30:1800+30"]

1. d4 {[%emt 0:01:42]} f5 {[%emt 0:00:00]} 2. g3 {[%emt 0:02:42]} Nf6 {[%emt 0:01:57]} 3. Bg2 {[%emt 0:03:24]} e6 {[%emt 0:00:43]} 4. Nf3 {[%emt 0:01:36]} Be7 {[%emt 0:00:47]} 5. O-O {[%emt 0:01:30]} O-O {[%emt 0:00:12]} 6. c4 {[%emt 0:03:37]} c6 {[%emt 0:03:22]} 7. Nc3 {[%emt 0:02:20]} d5 {[%emt 0:01:22]} 8. c5 {[%emt 0:02:27]} Bd7 {[%emt 0:04:20]} 9. Bf4 {[%emt 0:02:54]} Be8 {[%emt 0:02:23]} 10. Ng5 {[%emt 0:02:14]} Bf7 {[%emt 0:02:28]} 11. Nxf7 {[%emt 0:05:03]} Rxf7 {[%emt 0:00:32]} 12. Re1 {[%emt 0:02:41]} Nbd7 {[%emt 0:01:56]} 13. f3 {[%emt 0:02:13]} b6 {[%emt 0:05:51]} 14. cxb6 {[%emt 0:01:57]} Qxb6 {[%emt 0:02:59]} 15. Qc2 {[%emt 0:01:27]} Qxd4+ {[%emt 0:04:03]} 16. e3 {[%emt 0:00:48]} Qc5 {[%emt 0:01:33]} 17. Rac1 {[%emt 0:01:05]} Nh5 {[%emt 0:02:23]} 18. Bc7 {[%emt 0:02:32]} Rc8 {[%emt 0:00:39]} 19. Bf4 {[%emt 0:03:54]} e5 {[%emt 0:01:12]} 20. g4 {[%emt 0:02:36]} fxg4 {[%emt 0:01:15]} 21. Bg3 {[%emt 0:00:38]} Nxg3 {[%emt 0:00:10]} 22. hxg3 {[%emt 0:01:02]} gxf3 {[%emt 0:00:09]} 23. Bh3 {[%emt 0:06:25]} f2+ {[%emt 0:02:30]} 24. Kh2 {[%emt 0:01:18]} 0-1

[Event "European School-ch 2019"]
[Site "Mamaia"]
[Date "2019.06.03"]
[Round "4.37"]
[White "Savu, Vicentiu-Dorian"]
[Black "Simsek, Suat Can"]
[Result "1-0"]
[ECO "D00"]
[WhiteElo "1133"]
[BlackElo "1761"]
[Annotator "NA"]
[PlyCount "91"]
[EventDate "2019.05.31"]
[EventType "swiss"]
[EventCountry "ROU"]
[SourceTitle "playchess.com"]
[Source "ChessBase"]
[SourceQuality "1"]
[TimeControl "40/5400+30:1800+30"]

1. d4 {[%emt 0:00:00]} d5 {[%emt 0:00:00]} 2. Bf4 {[%emt 0:00:18]} e6 {[%emt 0:00:00]} 3. e3 {[%emt 0:00:12]} f5 {[%emt 0:02:24]} 4. Nf3 {[%emt 0:00:42]} Nf6 {[%emt 0:01:29]} 5. Bd3 {[%emt 0:00:20]} Be7 {[%emt 0:03:34]} 6. Nbd2 {[%emt 0:00:19]} Nbd7 {[%emt 0:01:01]} 7. Ne5 {[%emt 0:00:28]} O-O {[%emt 0:02:19]} 8. Qf3 {[%emt 0:00:12]} Ne4 {[%emt 0:06:15]} 9. Bxe4 {[%emt 0:00:44]} fxe4 {[%emt 0:02:19]} 10. Qh3 {[%emt 0:00:14]} Nxe5 {[%emt 0:06:15]} 11. Bxe5 {[%emt 0:01:19]} Bf6 {[%emt 0:11:51]} 12. Qg3 {[%emt 0:01:31]} Bd7 {[%emt 0:03:03]} 13. f3 {[%emt 0:00:53]} Bh4 {[%emt 0:02:23]} 14. fxe4 {[%emt 0:03:46]} Bxg3+ {[%emt 0:04:22]} 15. hxg3 {[%emt 0:01:32]} dxe4 {[%emt 0:01:15]} 16. Rh4 {[%emt 0:00:14]} Bc6 {[%emt 0:00:55]} 17. Rg4 {[%emt 0:00:54]} Rf7 {[%emt 0:00:40]} 18. O-O-O {[%emt 0:00:37]} Bb5 {[%emt 0:02:29]} 19. Rh1 {[%emt 0:05:00]} Be2 {[%emt 0:02:30]} 20. Rgh4 {[%emt 0:00:16]} h6 {[%emt 0:02:38]} 21. Nxe4 {[%emt 0:01:00]} Rf1+ {[%emt 0:00:33]} 22. Rxf1 {[%emt 0:01:00]} Bxf1 {[%emt 0:00:18]} 23. Rg4 {[%emt 0:00:45]} Qd7 {[%emt 0:02:12]} 24. Nf6+ {[%emt 0:02:22]} Kh8 {[%emt 0:00:28]} 25. Nxd7 Rg8 {[%emt 0:00:30]} 26. Rg6 {[%emt 0:02:34]} Kh7 {[%emt 0:00:18]} 27. Rxe6 {[%emt 0:02:04]} Bxg2 {[%emt 0:00:15]} 28. Re7 {[%emt 0:01:04]} c6 {[%emt 0:02:10]} 29. Nf6+ {[%emt 0:01:16]} Kh8 {[%emt 0:00:14]} 30. Nxg8 {[%emt 0:00:31]} Kxg8 {[%emt 0:00:08]} 31. Rxg7+ {[%emt 0:00:55]} Kf8 {[%emt 0:00:14]} 32. Rxb7 {[%emt 0:00:36]} c5 {[%emt 0:00:07]} 33. Rxa7 {[%emt 0:01:16]} cxd4 {[%emt 0:00:07]} 34. exd4 {[%emt 0:02:25]} h5 {[%emt 0:00:05]} 35. Kd2 {[%emt 0:00:38]} Bh1 {[%emt 0:02:17]} 36. b4 {[%emt 0:00:49]} Bg2 {[%emt 0:00:06]} 37. Kc3 {[%emt 0:01:59]} Ke8 {[%emt 0:00:04]} 38. Kc4 {[%emt 0:00:00]} Kd8 {[%emt 0:00:00]} 39. Kc5 {[%emt 0:00:00]} Kc8 {[%emt 0:00:00]} 40. b5 {[%emt 0:00:00]} Bh1 {[%emt 0:00:00]} 41. d5 {[%emt 0:06:24]} Bg2 {[%emt 0:05:36]} 42. Ra8+ {[%emt 0:01:45]} Kb7 {[%emt 0:00:15]} 43. Rb8+ {[%emt 0:00:42]} Ka7 {[%emt 0:00:05]} 44. Kc6 {[%emt 0:00:47]} Bh1 {[%emt 0:01:38]} 45. b6+ {[%emt 0:00:52]} Ka6 {[%emt 0:03:23]} 46. Ra8# {[%emt 0:00:20]} 1-0

[Event "European School-ch 2019"]
[Site "Mamaia"]
[Date "2019.06.03"]
[Round "4.41"]
[White "Shatil, Or"]
[Black "Mgeladze, Kesaria"]
[Result "0-1"]
[ECO "B13"]
[WhiteElo "1199"]
[BlackElo "1322"]
[Annotator "NA"]
[PlyCount "72"]
[EventDate "2019.05.31"]
[EventType "swiss"]
[EventCountry "ROU"]
[SourceTitle "playchess.com"]
[Source "ChessBase"]
[SourceQuality "1"]
[TimeControl "40/5400+30:1800+30"]

1. e4 {[%emt 0:00:00]} c6 {[%emt 0:00:00]} 2. d4 {[%emt 0:00:00]} d5 {[%emt 0:00:00]} 3. exd5 {[%emt 0:00:00]} cxd5 {[%emt 0:00:00]} 4. Bd3 {[%emt 0:00:00]} Nc6 {[%emt 0:00:00]} 5. c3 {[%emt 0:00:17]} Qc7 {[%emt 0:00:00]} 6. h3 {[%emt 0:00:07]} g6 {[%emt 0:00:41]} 7. Ne2 {[%emt 0:00:06]} Bf5 {[%emt 0:01:12]} 8. Bxf5 gxf5 {[%emt 0:00:12]} 9. Bf4 {[%emt 0:00:19]} Qb6 {[%emt 0:00:49]} 10. Qb3 {[%emt 0:03:19]} Nf6 {[%emt 0:09:23]} 11. O-O {[%emt 0:05:33]} e6 {[%emt 0:07:24]} 12. Qxb6 {[%emt 0:00:54]} axb6 {[%emt 0:00:10]} 13. Re1 {[%emt 0:03:17]} Be7 {[%emt 0:02:14]} 14. Nd2 {[%emt 0:01:21]} O-O {[%emt 0:00:47]} 15. Ng3 {[%emt 0:03:08]} b5 {[%emt 0:05:01]} 16. Nf3 {[%emt 0:07:26]} b4 {[%emt 0:02:33]} 17. Ne5 {[%emt 0:07:07]} Ra7 {[%emt 0:05:05]} 18. Bg5 {[%emt 0:21:40]} Rfa8 {[%emt 0:05:46]} 19. Kh2 {[%emt 0:09:06]} Bd8 {[%emt 0:09:57]} 20. Nxc6 {[%emt 0:04:46]} bxc6 {[%emt 0:00:07]} 21. cxb4 {[%emt 0:01:14]} Rxa2 {[%emt 0:00:14]} 22. Rxa2 {[%emt 0:00:32]} Rxa2 {[%emt 0:00:08]} 23. Rc1 {[%emt 0:00:37]} Ng4+ {[%emt 0:11:21]} 24. hxg4 {[%emt 0:01:11]} Bxg5 {[%emt 0:00:04]} 25. Rxc6 {[%emt 0:01:24]} fxg4 {[%emt 0:01:12]} 26. b5 {[%emt 0:01:25]} Rxb2 {[%emt 0:01:03]} 27. Nh5 h6 {[%emt 0:00:46]} 28. b6 {[%emt 0:07:37]} Kh7 {[%emt 0:00:18]} 29. Rd6 {[%emt 0:06:51]} Kg6 {[%emt 0:00:58]} 30. Ng3 {[%emt 0:03:40]} h5 {[%emt 0:00:19]} 31. Kg1 {[%emt 0:00:58]} h4 {[%emt 0:02:06]} 32. Nf1 {[%emt 0:00:50]} h3 {[%emt 0:00:47]} 33. g3 {[%emt 0:01:07]} Rb1 {[%emt 0:00:14]} 34. b7 {[%emt 0:02:22]} Rxb7 {[%emt 0:00:07]} 35. Kh2 {[%emt 0:01:09]} Rb2 {[%emt 0:01:11]} 36. Kg1 {[%emt 0:01:02]} Rb1 {[%emt 0:00:07]} 0-1